[Event "42nd WALTON Women-ch Bangladesh 2024"]
[Site "Dhaka"]
[Date "2024.05.25"]
[Round "6.5"]
[White "Jannatul, Ferdous"]
[Black "Hamid, Rani"]
[Result "0-1"]
[ECO "A47"]
[WhiteElo "1990"]
[BlackElo "1863"]
[Annotator "RC"]
[PlyCount "108"]
[EventDate "2024.05.20"]
[EventType "tourn"]
[EventCountry "BAN"]
[SourceTitle "playchess.com"]
[Source "ChessBase"]
[SourceQuality "1"]
[TimeControl "40/5400+30:1800+30"]

1. d4 {[%emt 0:05:13]} Nf6 {[%emt 0:00:40]} 2. e3 {[%emt 0:00:15]} e6 {[%emt 0:00:26]} 3. Bd3 {[%emt 0:00:15]} c5 {[%emt 0:00:38]} 4. c3 {[%emt 0:00:16]} b6 {[%emt 0:00:40]} 5. Nd2 {[%emt 0:00:18]} Bb7 {[%emt 0:00:39]} 6. Ngf3 {[%emt 0:02:14]} Be7 {[%emt 0:00:38]} 7. O-O {[%emt 0:00:17]} O-O {[%emt 0:00:17]} 8. e4 {[%emt 0:04:47]} d5 {[%emt 0:00:58]} 9. e5 {[%emt 0:01:06]} Ne4 {[%emt 0:00:15]} 10. Qe2 {[%emt 0:04:09]} Nxd2 {[%emt 0:02:36]} 11. Bxd2 {[%emt 0:00:38]} Nc6 {[%emt 0:01:14]} 12. a3 {[%emt 0:00:10]} Rc8 {[%emt 0:01:37]} 13. Rad1 {[%emt 0:05:35]} Na5 {[%emt 0:01:57]} 14. Bc1 {[%emt 0:06:55]} cxd4 {[%emt 0:02:08]} 15. cxd4 {[%emt 0:01:32]} Nc4 {[%emt 0:01:13]} 16. Ne1 {[%emt 0:05:08]} g6 {[%emt 0:04:02]} 17. f4 {[%emt 0:12:07]} Bc6 {[%emt 0:01:53]} 18. Nf3 {[%emt 0:11:04]} Ba4 {[%emt 0:04:05]} 19. Rde1 {[%emt 0:00:09]} Bb3 {[%emt 0:04:36]} 20. g4 {[%emt 0:10:11]} Bh4 {[%emt 0:01:36]} 21. Nxh4 {[%emt 0:01:46]} Qxh4 {[%emt 0:00:02]} 22. g5 {[%emt 0:01:04]} Kg7 {[%emt 0:04:55]} 23. Kh1 {[%emt 0:09:06]} Na5 {[%emt 0:04:01]} 24. Qg2 {[%emt 0:03:00]} Bc4 {[%emt 0:01:16]} 25. Re3 {[%emt 0:01:03]} Bxd3 {[%emt 0:01:23]} 26. Rxd3 {[%emt 0:00:23]} h5 {[%emt 0:03:29]} 27. gxh6+ {[%emt 0:00:47]} Kh7 {[%emt 0:00:01]} 28. Rh3 {[%emt 0:02:01]} Qe7 {[%emt 0:00:03]} 29. Bd2 {[%emt 0:03:41]} Nc6 {[%emt 0:00:30]} 30. Be3 {[%emt 0:05:11]} Qd8 {[%emt 0:00:47]} 31. f5 {[%emt 0:01:31]} exf5 {[%emt 0:00:25]} 32. Rxf5 {[%emt 0:00:11]} Ne7 {[%emt 0:00:06]} 33. Rf1 {[%emt 0:02:19]} Qd7 {[%emt 0:01:17]} 34. Rhf3 {[%emt 0:00:12]} Ng8 {[%emt 0:00:58]} 35. Qf2 {[%emt 0:01:11]} Rc7 {[%emt 0:00:23]} 36. Qh4 {[%emt 0:01:03]} Qe6 {[%emt 0:06:45]} 37. Qg5 {[%emt 0:00:36]} Rc2 {[%emt 0:10:00]} 38. Bd2 {[%emt 0:00:46]} a5 {[%emt 0:02:19]} 39. b4 {[%emt 0:00:10]} Rc4 {[%emt 0:02:37]} 40. Rf4 {[%emt 0:01:16]} Rc2 {[%emt 0:01:27]} 41. R4f3 {[%emt 0:30:20]} Rc4 {[%emt 0:32:59]} 42. Rf4 {[%emt 0:00:00]} Rc2 {[%emt 0:00:00]} 43. R1f2 {[%emt 0:00:00]} axb4 {[%emt 0:00:00]} 44. axb4 {[%emt 0:00:00]} f5 {[%emt 0:00:00]} 45. exf6 {[%emt 0:00:00]} Rxd2 {[%emt 0:00:00]} 46. f7 {[%emt 0:02:27]} Nxh6 {[%emt 0:00:00]} 47. Rxd2 {[%emt 0:01:05]} Qe1+ {[%emt 0:00:00]} 48. Qg1 {[%emt 0:00:24]} Qxd2 {[%emt 0:00:00]} 49. Rf6 {[%emt 0:00:28]} Qd3 {[%emt 0:00:00]} 50. Qf2 {[%emt 0:00:36]} Qd1+ {[%emt 0:00:00]} 51. Kg2 {[%emt 0:00:08]} Qg4+ {[%emt 0:00:00]} 52. Kf1 {[%emt 0:00:10]} Qg5 {[%emt 0:00:00]} 53. Qf3 {[%emt 0:00:43]} Kg7 {[%emt 0:00:00]} 54. h4 {[%emt 0:00:51]} Qxf6 {[%emt 0:00:00]} 0-1

[Event "42nd WALTON Women-ch Bangladesh 2024"]
[Site "Dhaka"]
[Date "2024.05.25"]
[Round "6.6"]
[White "Warsia, Khusbu"]
[Black "Tabassum Sadia, Shahjahan"]
[Result "1-0"]
[ECO "B15"]
[WhiteElo "1905"]
[BlackElo "1567"]
[Annotator "RC"]
[PlyCount "55"]
[EventDate "2024.05.20"]
[EventType "tourn"]
[EventCountry "BAN"]
[SourceTitle "playchess.com"]
[Source "ChessBase"]
[SourceQuality "1"]
[TimeControl "40/5400+30:1800+30"]

1. e4 {[%emt 0:03:00]} c6 {[%emt 0:00:28]} 2. d4 {[%emt 0:00:25]} d5 {[%emt 0:00:13]} 3. Nc3 {[%emt 1:28:35]} dxe4 {[%emt 0:00:18]} 4. Nxe4 {[%emt 0:00:00]} Nf6 {[%emt 0:00:13]} 5. Nxf6+ {[%emt 0:00:00]} exf6 {[%emt 0:00:23]} 6. c3 {[%emt 0:00:00]} Bd6 {[%emt 0:00:16]} 7. Bd3 {[%emt 0:00:00]} O-O {[%emt 0:02:34]} 8. Qc2 {[%emt 0:00:00]} Re8+ {[%emt 0:00:52]} 9. Ne2 {[%emt 0:00:00]} h5 {[%emt 0:00:36]} 10. Be3 {[%emt 0:00:00]} h4 {[%emt 0:01:45]} 11. h3 {[%emt 0:00:00]} Nd7 {[%emt 0:00:27]} 12. O-O-O {[%emt 0:00:00]} Nf8 {[%emt 0:02:27]} 13. Kb1 {[%emt 0:00:00]} Be6 {[%emt 0:01:18]} 14. Nf4 {[%emt 0:00:00]} Bd7 {[%emt 0:08:05]} 15. c4 {[%emt 0:00:00]} Qc7 {[%emt 0:06:58]} 16. Ne2 {[%emt 0:00:00]} c5 {[%emt 0:08:16]} 17. Rhg1 {[%emt 0:00:00]} Rab8 {[%emt 0:14:54]} 18. dxc5 {[%emt 0:00:00]} Bxc5 {[%emt 0:00:46]} 19. Bf4 {[%emt 0:00:00]} Qc6 {[%emt 0:18:13]} 20. Bxb8 {[%emt 0:00:00]} Rxb8 {[%emt 0:00:15]} 21. Be4 {[%emt 0:00:00]} Qb6 {[%emt 0:04:22]} 22. Nc3 {[%emt 0:00:00]} Bxf2 {[%emt 0:01:47]} 23. Nd5 {[%emt 0:00:00]} Qe6 {[%emt 0:05:02]} 24. Rgf1 {[%emt 0:00:00]} Bg3 {[%emt 0:06:03]} 25. Bf5 {[%emt 0:00:00]} Qe5 {[%emt 0:02:53]} 26. Nxf6+ {[%emt 0:00:00]} gxf6 {[%emt 0:02:43]} 27. Bxd7 {[%emt 0:00:00]} Nxd7 {[%emt 0:09:51]} 28. Rxd7 {[%emt 0:00:00]} 1-0

[Event "42nd WALTON Women-ch Bangladesh 2024"]
[Site "Dhaka"]
[Date "2024.05.26"]
[Round "7.1"]
[White "Tabassum Sadia, Shahjahan"]
[Black "Wadifa, Ahmed"]
[Result "1/2-1/2"]
[ECO "D27"]
[WhiteElo "1567"]
[BlackElo "1921"]
[Annotator "RC"]
[PlyCount "221"]
[EventDate "2024.05.20"]
[EventType "tourn"]
[EventCountry "BAN"]
[SourceTitle "playchess.com"]
[Source "ChessBase"]
[SourceQuality "1"]
[TimeControl "40/5400+30:1800+30"]

1. d4 {[%emt 0:19:11]} d5 {[%emt 0:01:51]} 2. c4 {[%emt 0:00:06]} dxc4 {[%emt 0:00:06]} 3. e3 {[%emt 0:00:25]} Nf6 {[%emt 0:00:15]} 4. Bxc4 {[%emt 0:00:26]} e6 {[%emt 0:00:07]} 5. Nc3 {[%emt 0:00:12]} a6 {[%emt 0:00:06]} 6. Nf3 {[%emt 0:00:24]} c5 {[%emt 0:00:08]} 7. O-O {[%emt 0:04:36]} Nc6 {[%emt 0:00:49]} 8. Qa4 {[%emt 0:12:22]} Bd7 {[%emt 0:01:27]} 9. Qd1 {[%emt 0:01:53]} b5 {[%emt 0:14:04]} 10. Bb3 {[%emt 0:01:18]} Bc8 {[%emt 0:08:26]} 11. d5 {[%emt 0:08:38]} exd5 {[%emt 0:01:13]} 12. Bxd5 {[%emt 0:00:16]} Nxd5 {[%emt 0:00:56]} 13. Qxd5 {[%emt 0:04:38]} Qxd5 {[%emt 0:05:07]} 14. Nxd5 {[%emt 0:00:11]} Ra7 {[%emt 0:01:05]} 15. b3 {[%emt 0:03:46]} Bd6 {[%emt 0:05:49]} 16. Rd1 {[%emt 0:01:15]} O-O {[%emt 0:14:25]} 17. Nf6+ {[%emt 0:04:11]} gxf6 {[%emt 0:00:06]} 18. Rxd6 {[%emt 0:00:17]} Rd8 {[%emt 0:00:19]} 19. Rxd8+ {[%emt 0:01:05]} Nxd8 {[%emt 0:00:01]} 20. Bb2 {[%emt 0:00:17]} Kg7 {[%emt 0:03:34]} 21. Rd1 {[%emt 0:01:28]} Rd7 {[%emt 0:03:20]} 22. Rxd7 {[%emt 0:00:56]} Bxd7 {[%emt 0:00:01]} 23. Nd2 {[%emt 0:01:28]} Bc6 {[%emt 0:00:15]} 24. f4 {[%emt 0:03:03]} h5 {[%emt 0:07:23]} 25. h3 {[%emt 0:03:47]} Nb7 {[%emt 0:03:01]} 26. g4 {[%emt 0:03:31]} hxg4 {[%emt 0:00:09]} 27. hxg4 {[%emt 0:00:07]} Kg6 {[%emt 0:00:04]} 28. e4 {[%emt 0:01:24]} Nd6 {[%emt 0:07:42]} 29. e5 {[%emt 0:00:27]} Ne8 {[%emt 0:00:13]} 30. exf6 {[%emt 0:02:16]} Nxf6 {[%emt 0:00:04]} 31. Bxf6 {[%emt 0:00:16]} Kxf6 {[%emt 0:00:02]} 32. Kf2 {[%emt 0:00:13]} Bd5 {[%emt 0:17:36]} 33. Ke3 {[%emt 0:04:18]} Ke7 {[%emt 0:00:22]} 34. Kd3 {[%emt 0:02:41]} Kd7 {[%emt 0:02:32]} 35. Kc3 {[%emt 0:05:35]} Kc6 {[%emt 0:01:29]} 36. a3 {[%emt 0:01:19]} Kd6 {[%emt 0:00:50]} 37. b4 {[%emt 0:05:17]} c4 {[%emt 0:02:41]} 38. Kd4 {[%emt 0:00:45]} Bg2 {[%emt 0:00:26]} 39. Nb1 {[%emt 0:02:33]} Bf3 {[%emt 0:01:12]} 40. g5 {[%emt 0:00:34]} Ke6 {[%emt 0:00:04]} 41. Ke3 {[%emt 0:04:44]} Bc6 {[%emt 0:00:24]} 42. Nc3 {[%emt 0:00:57]} Kf5 {[%emt 0:00:34]} 43. Ne2 {[%emt 0:00:18]} Kg4 {[%emt 0:01:17]} 44. Nc3 {[%emt 0:00:40]} Kg3 {[%emt 0:01:18]} 45. Ne2+ {[%emt 0:01:22]} Kg4 {[%emt 0:00:04]} 46. Nc3 {[%emt 0:00:46]} Bd7 {[%emt 0:00:53]} 47. Nd5 {[%emt 0:01:37]} Bf5 {[%emt 0:00:40]} 48. Nc3 {[%emt 0:02:47]} Bc2 {[%emt 0:01:29]} 49. Nd5 {[%emt 0:01:06]} Ba4 {[%emt 0:02:20]} 50. Ke4 {[%emt 0:03:06]} Bc2+ {[%emt 0:01:01]} 51. Ke3 {[%emt 0:03:52]} Bg6 {[%emt 0:00:46]} 52. Nc3 {[%emt 0:00:48]} Kg3 {[%emt 0:03:40]} 53. a4 {[%emt 0:00:42]} bxa4 {[%emt 0:00:22]} 54. Nxa4 {[%emt 0:00:18]} Bf5 {[%emt 0:00:36]} 55. Nc3 {[%emt 0:00:24]} Bd7 {[%emt 0:05:27]} 56. Ne4+ {[%emt 0:01:13]} Kh4 {[%emt 0:00:09]} 57. Kd4 {[%emt 0:00:39]} Bf5 {[%emt 0:03:39]} 58. Nc3 {[%emt 0:02:25]} Kg4 {[%emt 0:00:34]} 59. Ke3 {[%emt 0:01:18]} Bd7 {[%emt 0:00:53]} 60. Ne4 {[%emt 0:00:18]} Bb5 {[%emt 0:04:37]} 61. Nc3 {[%emt 0:00:17]} Kf5 {[%emt 0:00:10]} 62. Nd5 {[%emt 0:00:38]} Ke6 {[%emt 0:00:18]} 63. Nc3 {[%emt 0:01:08]} Kd6 {[%emt 0:01:18]} 64. Kd4 {[%emt 0:00:17]} Ke6 {[%emt 0:00:19]} 65. Ke4 {[%emt 0:00:44]} Bc6+ {[%emt 0:00:19]} 66. Kd4 {[%emt 0:00:25]} Kf5 {[%emt 0:00:16]} 67. Ke3 {[%emt 0:00:24]} Bg2 {[%emt 0:01:30]} 68. Ne2 {[%emt 0:00:37]} Ke6 {[%emt 0:01:02]} 69. Kd4 {[%emt 0:00:47]} Bf1 {[%emt 0:00:08]} 70. Nc3 {[%emt 0:00:12]} Bd3 {[%emt 0:00:15]} 71. Ke3 {[%emt 0:00:40]} Kd6 {[%emt 0:00:50]} 72. Kd4 {[%emt 0:00:38]} Bf1 {[%emt 0:01:09]} 73. Ne4+ {[%emt 0:02:29]} Ke6 {[%emt 0:00:18]} 74. Nc3 {[%emt 0:04:02]} Bd3 {[%emt 0:00:38]} 75. Na4 {[%emt 0:00:56]} Kf5 {[%emt 0:00:52]} 76. Ke3 {[%emt 0:00:09]} Bf1 {[%emt 0:00:31]} 77. Nc3 {[%emt 0:00:24]} Bd3 {[%emt 0:00:30]} 78. Na4 {[%emt 0:00:46]} Bf1 {[%emt 0:01:00]} 79. Nc3 {[%emt 0:00:07]} Bg2 {[%emt 0:00:49]} 80. Ne2 {[%emt 0:00:38]} Ke6 {[%emt 0:01:04]} 81. Kd4 {[%emt 0:01:08]} Kd6 {[%emt 0:01:42]} 82. f5 {[%emt 0:01:39]} Bf1 {[%emt 0:00:23]} 83. Nc3 {[%emt 0:00:53]} Bd3 {[%emt 0:00:06]} 84. Ne4+ {[%emt 0:01:57]} Ke7 {[%emt 0:03:25]} 85. g6 {[%emt 0:00:32]} fxg6 {[%emt 0:00:03]} 86. fxg6 {[%emt 0:00:16]} Kf8 {[%emt 0:00:27]} 87. Nc5 {[%emt 0:00:31]} Bxg6 {[%emt 0:00:22]} 88. Kxc4 {[%emt 0:00:23]} Bh5 {[%emt 0:00:17]} 89. Kd5 {[%emt 0:00:26]} Be2 {[%emt 0:00:40]} 90. Kc6 {[%emt 0:00:07]} Ke7 {[%emt 0:00:07]} 91. Kb6 {[%emt 0:00:07]} Kd8 {[%emt 0:00:20]} 92. Nxa6 {[%emt 0:00:23]} Kc8 {[%emt 0:00:10]} 93. Nc5 {[%emt 0:00:23]} Kb8 {[%emt 0:00:11]} 94. Nd7+ {[%emt 0:00:33]} Ka8 {[%emt 0:00:13]} 95. Kc5 {[%emt 0:00:17]} Kb7 {[%emt 0:00:17]} 96. Ne5 {[%emt 0:00:07]} Ba6 {[%emt 0:00:39]} 97. Nc4 {[%emt 0:00:20]} Bxc4 {[%emt 0:01:05]} 98. Kxc4 {[%emt 0:00:07]} Kc6 {[%emt 0:00:04]} 99. b5+ {[%emt 0:00:49]} Kb6 {[%emt 0:00:02]} 100. Kb4 {[%emt 0:00:12]} Kb7 {[%emt 0:00:03]} 101. Kc5 {[%emt 0:00:05]} Kc7 {[%emt 0:00:06]} 102. Kb4 {[%emt 0:00:36]} Kb6 {[%emt 0:00:04]} 103. Kc4 {[%emt 0:00:12]} Kb7 {[%emt 0:00:06]} 104. Kc5 {[%emt 0:00:22]} Kc7 {[%emt 0:00:04]} 105. b6+ {[%emt 0:00:20]} Kb7 {[%emt 0:00:04]} 106. Kb5 {[%emt 0:00:08]} Kb8 {[%emt 0:00:09]} 107. Kc6 {[%emt 0:00:41]} Ka8 {[%emt 0:00:16]} 108. Kb5 {[%emt 0:00:12]} Kb7 {[%emt 0:00:04]} 109. Ka5 {[%emt 0:00:15]} Kb8 {[%emt 0:00:04]} 110. Ka6 {[%emt 0:00:58]} Ka8 {[%emt 0:00:04]} 111. Kb5 {[%emt 0:00:24]} 1/2-1/2

[Event "42nd WALTON Women-ch Bangladesh 2024"]
[Site "Dhaka"]
[Date "2024.05.26"]
[Round "7.2"]
[White "Hamid, Rani"]
[Black "Warsia, Khusbu"]
[Result "1-0"]
[ECO "C42"]
[WhiteElo "1863"]
[BlackElo "1905"]
[Annotator "RC"]
[PlyCount "89"]
[EventDate "2024.05.20"]
[EventType "tourn"]
[EventCountry "BAN"]
[SourceTitle "playchess.com"]
[Source "ChessBase"]
[SourceQuality "1"]
[TimeControl "40/5400+30:1800+30"]

1. e4 {[%emt 0:06:47]} e5 {[%emt 0:05:09]} 2. Nf3 {[%emt 0:00:06]} Nf6 {[%emt 0:00:10]} 3. Nxe5 {[%emt 0:00:22]} d6 {[%emt 0:00:06]} 4. Nf3 {[%emt 0:00:08]} Nxe4 {[%emt 0:00:06]} 5. Nc3 {[%emt 0:00:21]} Nxc3 {[%emt 0:00:25]} 6. dxc3 {[%emt 0:00:05]} Be7 {[%emt 0:00:21]} 7. Be3 {[%emt 0:00:13]} O-O {[%emt 0:02:12]} 8. Qd2 {[%emt 0:00:17]} Be6 {[%emt 0:04:39]} 9. O-O-O {[%emt 0:01:17]} Nc6 {[%emt 0:00:26]} 10. Kb1 {[%emt 0:00:11]} Ne5 {[%emt 0:06:08]} 11. Nd4 {[%emt 0:02:51]} c5 {[%emt 0:08:03]} 12. Nxe6 {[%emt 0:00:21]} fxe6 {[%emt 0:00:04]} 13. Be2 {[%emt 0:00:24]} d5 {[%emt 0:08:54]} 14. f4 {[%emt 1:24:07]} Nc6 {[%emt 0:04:10]} 15. g4 {[%emt 0:00:00]} Qd6 {[%emt 0:05:01]} 16. g5 {[%emt 0:00:00]} Rad8 {[%emt 0:00:17]} 17. Rhf1 {[%emt 0:00:00]} a6 {[%emt 0:11:22]} 18. h4 {[%emt 0:00:00]} b5 {[%emt 0:00:39]} 19. h5 {[%emt 0:00:00]} d4 {[%emt 0:12:02]} 20. Bg1 {[%emt 0:00:00]} e5 {[%emt 0:03:24]} 21. f5 {[%emt 0:00:00]} Qd7 {[%emt 0:11:49]} 22. Bd3 {[%emt 0:00:00]} dxc3 {[%emt 0:02:31]} 23. Qxc3 {[%emt 0:00:00]} Nd4 {[%emt 0:00:58]} 24. f6 {[%emt 0:00:00]} gxf6 {[%emt 0:01:19]} 25. gxf6 {[%emt 0:00:00]} Rxf6 {[%emt 0:00:05]} 26. Rxf6 {[%emt 0:00:00]} Bxf6 {[%emt 0:00:02]} 27. Qxc5 {[%emt 0:00:00]} Rc8 {[%emt 0:05:46]} 28. Qb4 {[%emt 0:00:00]} Bg5 {[%emt 0:02:28]} 29. Qe1 {[%emt 0:00:00]} Nf3 {[%emt 0:03:36]} 30. Qg3 {[%emt 0:00:00]} Qc6 {[%emt 0:00:35]} 31. Be3 {[%emt 0:00:00]} h6 {[%emt 0:00:57]} 32. c3 {[%emt 0:00:00]} Qf6 {[%emt 0:01:42]} 33. Be4 {[%emt 0:00:00]} Kh8 {[%emt 0:00:54]} 34. Rd7 {[%emt 0:00:00]} Rf8 {[%emt 0:00:35]} 35. b3 {[%emt 0:00:00]} Qe6 {[%emt 0:00:31]} 36. Rh7+ {[%emt 0:00:00]} Kg8 {[%emt 0:00:01]} 37. Rb7 {[%emt 0:00:00]} Kh8 {[%emt 0:00:56]} 38. Kb2 {[%emt 0:00:00]} Qd6 {[%emt 0:00:34]} 39. Bxf3 {[%emt 0:00:00]} Qf6 {[%emt 0:00:28]} 40. Be4 {[%emt 0:00:00]} Qf1 {[%emt 0:00:33]} 41. Qxe5+ {[%emt 0:25:39]} Qf6 {[%emt 0:01:52]} 42. Rh7+ {[%emt 0:00:00]} Kg8 {[%emt 0:00:09]} 43. Qd5+ {[%emt 0:00:00]} Rf7 {[%emt 0:00:31]} 44. Bd4 {[%emt 0:00:00]} Qf4 {[%emt 0:00:30]} 45. Rh8# {[%emt 0:00:00]} 1-0

[Event "42nd WALTON Women-ch Bangladesh 2024"]
[Site "Dhaka"]
[Date "2024.05.26"]
[Round "7.3"]
[White "Neelava, Choudhury"]
[Black "Jannatul, Ferdous"]
[Result "1/2-1/2"]
[ECO "B16"]
[WhiteElo "1778"]
[BlackElo "1990"]
[Annotator "NA RC"]
[PlyCount "118"]
[EventDate "2024.05.20"]
[EventType "tourn"]
[EventCountry "BAN"]
[SourceTitle "playchess.com"]
[Source "ChessBase"]
[SourceQuality "1"]
[TimeControl "40/5400+30:1800+30"]

1. e4 {[%emt 0:10:48]} c6 {[%emt 0:05:05]} 2. d4 {[%emt 0:00:06]} d5 {[%emt 0:00:10]} 3. Nc3 {[%emt 0:00:03]} dxe4 {[%emt 0:00:08]} 4. Nxe4 {[%emt 0:00:04]} Nf6 {[%emt 0:00:33]} 5. Nxf6+ {[%emt 0:00:03]} gxf6 {[%emt 0:00:06]} 6. c3 {[%emt 0:00:50]} Qd5 {[%emt 0:00:09]} 7. c4 {[%emt 0:00:53] B16: Caro-Kann: Bronstein-Larsen Variation.} Qe4+ {[%emt 0:01:19]} 8. Ne2 {[%emt 0:03:53]} Na6 {[%emt 0:17:27]} 9. Be3 {[%emt 0:02:37]} ({White should play} 9. a3 $16) 9... Nb4 {[%emt 0:03:17]} 10. Ng3 $1 {[%emt 0:03:16]} Qg6 {[%emt 0:03:00]} (10... Nc2+ $11 11. Kd2 Nxe3 12. fxe3 Qh4) 11. Rc1 {[%emt 0:02:51]} (11. Kd2 $1 $14) 11... Nxa2 {[%emt 0:00:15]} 12. Bd3 {[%emt 0:00:35]} f5 $1 {[%emt 0:03:12]} 13. Ra1 {[%emt 0:01:42]} Nb4 {[%emt 0:00:05]} 14. Bb1 {[%emt 0:03:27]} e6 {[%emt 0:05:56]} (14... h5 $1 $11) 15. Qb3 {[%emt 0:22:01]} (15. O-O $14) 15... h5 $1 {[%emt 0:19:54]} 16. Rg1 {[%emt 0:09:52]} (16. Ne2 $11) 16... Na6 {[%emt 0:03:04]} (16... a5 $17 17. Bd2 h4) 17. d5 {[%emt 0:10:25]} (17. Ne2 $11 {feels stronger.}) 17... e5 {[%emt 0:10:59]} (17... Rg8 $17) 18. dxc6 {[%emt 0:05:23]} bxc6 {[%emt 0:00:19]} 19. Nxf5 $1 {[%emt 0:06:05]} Bxf5 {[%emt 0:17:46]} 20. Bxf5 {[%emt 0:04:00]} (20. Rxa6 $2 {loses.} Bxb1 21. Qc3 Bg7 $19) 20... Qxf5 {[%emt 0:04:55]} 21. Rxa6 {[%emt 0:03:36]} Bb4+ $2 {[%emt 0:02:41]} 22. Ke2 {[%emt 0:04:25]} c5 {[%emt 0:00:23]} 23. Bxc5 {[%emt 0:01:43]} Bxc5 {[%emt 0:00:43]} 24. Qb5+ {[%emt 0:00:21]} Qd7 {[%emt 0:00:27]} 25. Qxc5 {[%emt 0:00:12]} Qg4+ {[%emt 0:00:36]} 26. f3 {[%emt 0:00:14]} Qf5 {[%emt 0:00:24]} 27. Qc6+ {[%emt 0:00:45]} Ke7 {[%emt 0:00:31]} 28. Qb7+ {[%emt 0:01:05]} Qd7 {[%emt 0:00:17]} 29. Qxd7+ {[%emt 0:00:07]} Kxd7 {[%emt 0:00:01]} 30. Rga1 {[%emt 0:00:12]} Rhb8 {[%emt 0:00:43]} 31. Rxa7+ {[%emt 0:00:19]} Rxa7 {[%emt 0:00:02]} 32. Rxa7+ {[%emt 0:00:01]} Kd6 {[%emt 0:01:22]} (32... Ke6 {was worth a try.}) 33. Ra2 {[%emt 0:01:52]} Kc5 {[%emt 0:00:17]} (33... h4 $142 34. Kd3 Rb3+ 35. Kc2 Re3 36. Ra6+ Kd7 37. Ra7+ Ke6) 34. Kd3 {[%emt 0:01:02]} Rb3+ {[%emt 0:00:32]} 35. Kc2 {[%emt 0:01:01]} Re3 {[%emt 0:00:14]} 36. Kd2 {[%emt 0:00:50]} Rb3 {[%emt 0:00:02] [#]} 37. Ra5+ $1 {[%emt 0:00:22]} Kxc4 {[%emt 0:00:48]} 38. Rxe5 {[%emt 0:00:14]} Rxb2+ {[%emt 0:01:08]} 39. Ke3 {[%emt 0:00:03]} Rxg2 {[%emt 0:00:37]} (39... h4 $142 40. g4 Rxh2) 40. Rxh5 {[%emt 0:00:14]} f6 {[%emt 0:00:29]} 41. h4 {[%emt 0:30:44]} Rh2 {[%emt 0:30:32]} 42. Kf4 {[%emt 0:00:19]} Kd4 {[%emt 0:00:29]} 43. Kg3 {[%emt 0:00:37]} (43. Rh8 $142 Kc5 44. Kf5) 43... Rh1 {[%emt 0:00:24]} 44. Rf5 {[%emt 0:01:16]} Rg1+ {[%emt 0:00:00]} 45. Kf4 {[%emt 0:00:00]} Rg6 {[%emt 0:00:00]} 46. Rh5 $18 {[%emt 0:00:00]} Rg1 {[%emt 0:00:00]} 47. Rh6 {[%emt 0:00:00]} Rh1 {[%emt 0:00:00]} 48. h5 {[%emt 0:00:00]} Rh4+ {[%emt 0:00:00]} 49. Kf5 {[%emt 0:00:00]} Ke3 {[%emt 0:00:00]} 50. Kxf6 {[%emt 0:00:00]} Kxf3 {[%emt 0:00:00]} 51. Kg5 {[%emt 0:00:00]} Rg4+ {[%emt 0:00:00]} 52. Kf6 {[%emt 0:00:00]} Rf4+ {[%emt 0:01:22]} 53. Kg6 {[%emt 0:00:00]} Rg4+ {[%emt 0:00:24]} 54. Kf7 {[%emt 0:00:00]} Kf4 {[%emt 0:01:58]} 55. Rf6+ {[%emt 0:00:00]} Kg5 {[%emt 0:01:40]} 56. h6 {[%emt 0:00:00]} Ra4 {[%emt 0:00:33]} 57. Kg7 {[%emt 0:00:00]} Ra7+ {[%emt 0:00:27]} 58. Rf7 {[%emt 0:00:00]} Rxf7+ {[%emt 0:00:04]} 59. Kxf7 {[%emt 0:00:00]} Kxh6 {[%emt 0:00:04]} 1/2-1/2

[Event "42nd WALTON Women-ch Bangladesh 2024"]
[Site "Dhaka"]
[Date "2024.05.26"]
[Round "7.4"]
[White "Kazi Zarin, Tasnim"]
[Black "Nusrat Jahan, Alo"]
[Result "0-1"]
[ECO "B10"]
[WhiteElo "1854"]
[BlackElo "1850"]
[Annotator "NA RC"]
[PlyCount "135"]
[EventDate "2024.05.20"]
[EventType "tourn"]
[EventCountry "BAN"]
[SourceTitle "playchess.com"]
[Source "ChessBase"]
[SourceQuality "1"]
[TimeControl "40/5400+30:1800+30"]

1. e4 {[%emt 0:00:24]} c6 {[%emt 0:00:13]} 2. Nf3 {[%emt 0:00:14]} d5 {[%emt 0:00:06]} 3. exd5 {[%emt 0:00:14]} cxd5 {[%emt 0:00:09]} 4. Ne5 {[%emt 0:00:14]} Nf6 {[%emt 0:01:24]} 5. d4 {[%emt 0:00:08]} a6 {[%emt 0:01:19]} 6. c3 {[%emt 0:07:54] B10: Caro-Kann: 2 d3 and 2 c4.} Nc6 {[%emt 0:02:02]} 7. Bd3 {[%emt 0:06:44]} g6 {[%emt 0:03:26]} 8. O-O {[%emt 0:06:43]} Bg7 {[%emt 0:03:00]} 9. Nxc6 {[%emt 0:05:09]} bxc6 {[%emt 0:01:19]} 10. Nd2 {[%emt 0:01:14]} O-O {[%emt 0:04:48]} 11. Re1 {[%emt 0:07:31]} Qc7 {[%emt 0:08:06]} 12. Nb3 {[%emt 0:04:33]} Ng4 {[%emt 0:13:44]} 13. f4 {[%emt 0:09:26]} Bf5 {[%emt 0:05:23]} 14. Nc5 {[%emt 0:04:58]} a5 $1 {[%emt 0:05:17]} 15. h3 {[%emt 0:06:02]} Nf6 $1 {[%emt 0:01:54]} 16. Qf3 {[%emt 0:02:23]} Bxd3 {[%emt 0:01:37]} 17. Qxd3 {[%emt 0:00:47]} e6 {[%emt 0:00:33]} 18. Bd2 {[%emt 0:09:53]} Nd7 {[%emt 0:04:06]} 19. Nxd7 {[%emt 0:01:35]} Qxd7 {[%emt 0:00:08]} 20. Qf3 {[%emt 0:00:23]} Qd6 {[%emt 0:03:39]} 21. Be3 {[%emt 0:01:02]} a4 {[%emt 0:02:30]} 22. h4 {[%emt 0:01:57]} Qe7 {[%emt 0:05:29]} 23. Bf2 {[%emt 0:01:31]} Qb7 {[%emt 0:03:33]} 24. Re2 {[%emt 0:00:13]} Rab8 {[%emt 0:03:39]} 25. h5 {[%emt 0:00:49]} Qa6 {[%emt 0:00:59]} 26. g4 {[%emt 0:02:56]} c5 {[%emt 0:06:19]} 27. Kg2 {[%emt 0:02:27]} Qc4 {[%emt 0:06:45]} 28. dxc5 {[%emt 0:03:57]} a3 {[%emt 0:01:53]} 29. b3 {[%emt 0:00:05]} Qxc3 {[%emt 0:00:17]} 30. Qxc3 {[%emt 0:00:03]} Bxc3 {[%emt 0:00:02]} 31. Rc1 {[%emt 0:00:32]} d4 {[%emt 0:00:26]} (31... Bb2 $14 32. Rcc2 Rfc8) 32. Rxc3 {[%emt 0:06:41]} dxc3 {[%emt 0:00:44]} 33. Bd4 {[%emt 0:01:30]} Rb5 {[%emt 0:02:32]} 34. Bxc3 {[%emt 0:01:59]} Rd8 {[%emt 0:00:06]} 35. b4 {[%emt 0:00:21]} gxh5 {[%emt 0:00:17]} 36. gxh5 {[%emt 0:00:08]} Kf8 {[%emt 0:01:58]} 37. Rd2 {[%emt 0:01:38]} Rxd2+ {[%emt 0:02:10]} 38. Bxd2 {[%emt 0:00:01]} Ke7 {[%emt 0:00:00]} 39. Kf3 {[%emt 0:00:19]} f5 {[%emt 0:02:02]} 40. Ke3 {[%emt 0:00:20]} Kd7 {[%emt 0:01:36]} 41. Kd4 {[%emt 0:30:07]} Kc6 {[%emt 0:33:16]} 42. Kc4 {[%emt 0:00:48]} Rb8 {[%emt 0:00:00]} 43. Bc3 {[%emt 0:00:00]} Rb7 $18 {[%emt 0:00:00]} 44. Be5 {[%emt 0:00:00]} Rb5 {[%emt 0:00:00]} 45. Bd4 {[%emt 0:00:00]} Rb8 {[%emt 0:00:00]} 46. Bc3 {[%emt 0:00:00]} Rb7 {[%emt 0:00:00]} 47. h6 {[%emt 0:00:00]} Rb8 {[%emt 0:00:00]} 48. Bd2 {[%emt 0:00:00]} Rb7 {[%emt 0:00:00]} 49. Bc1 {[%emt 0:00:00]} Rd7 {[%emt 0:00:00]} 50. b5+ {[%emt 0:00:00]} Kc7 {[%emt 0:00:00]} 51. Bxa3 {[%emt 0:00:00]} Rd2 {[%emt 0:00:00]} 52. Kb3 {[%emt 0:00:00]} Rd3+ {[%emt 0:00:00]} 53. Kb2 {[%emt 0:00:00]} Rd4 {[%emt 0:00:00]} 54. Kc2 {[%emt 0:00:00]} Rxf4 {[%emt 0:00:00]} 55. Kc3 {[%emt 0:00:01]} Rf3+ {[%emt 0:01:29]} 56. Kb4 {[%emt 0:00:26]} Rxa3 {[%emt 0:00:17]} 57. Kxa3 {[%emt 0:02:40]} f4 {[%emt 0:00:13]} 58. Kb4 {[%emt 0:02:28]} f3 {[%emt 0:00:22]} 59. c6 {[%emt 0:00:13]} f2 {[%emt 0:00:55]} 60. Kc5 {[%emt 0:00:21]} f1=Q {[%emt 0:00:20]} 61. b6+ {[%emt 0:00:31]} Kc8 {[%emt 0:00:33]} 62. Kd6 {[%emt 0:00:31]} Qf4+ {[%emt 0:00:18]} 63. Kxe6 {[%emt 0:00:20]} Qxh6+ {[%emt 0:00:10]} 64. Kd5 {[%emt 0:00:15]} Qd2+ {[%emt 0:00:50]} 65. Kc5 {[%emt 0:01:26]} Qxa2 {[%emt 0:00:18]} 66. Kd6 {[%emt 0:00:33]} Qa3+ {[%emt 0:00:33]} 67. Kd5 {[%emt 0:00:12]} Qa5+ {[%emt 0:00:09]} 68. Kd4 {[%emt 0:08:40]} 0-1